bitfinex/quotes_SOLUSD_20241215
["timestamp","ask_amount","ask_price","bid_price","bid_amount"]
[1734287683124,1.89949661,221.23,221.16,1.5528]
[1734287683653,0.12549,221.22,221.16,1.5528]
[1734287684022,23.902374,221.22,221.16,1.5528]
[1734287686644,23.902374,221.22,221.16,21.7828]
[1734287687058,23.902374,221.22,221.16,1.5528]
[1734287691834,23.902374,221.22,221.16,5.9728]
[1734287700159,0.12549,221.21,221.16,5.9728]
[1734287701937,0.12549,221.21,221.16,1.5528]
[1734287703379,0.12549,221.21,221.15,6.1713]
[1734287703541,24.027864,221.19,221.1,1.5135]
[1734287703748,24.027864,221.19,221.11,13.74]
[1734287704878,24.027864,221.17,221.11,13.74]
[1734287705169,24.027864,221.17,221.1,1.5135]
[1734287707345,24.027864,221.17,221.11,6.3943]
[1734287717473,0.25098,221.17,221.11,6.3943]
[1734287717714,24.027864,221.15,221.06,6.2624]
[1734287718016,24.027864,221.15,221.07,20.23]
[1734287718719,24.027864,221.11,221.07,20.23]
[1734287718880,24.027864,221.11,221.06,6.2624]
[1734287719087,35.334764,221.11,221.06,6.2624]
[1734287720218,35.334764,221.11,221.05,1.6451]
[1734287721784,35.334764,221.11,221.01,6.5647]
[1734287721987,24.027864,221.07,221.01,6.5647]
[1734287726125,1.5894,221.14,221.01,6.5647]
[1734287726126,11.3049,221.15,221.03,7.64460955]
[1734287726292,2.68305865,221.13,221.03,7.64460955]
[1734287726622,0.12549,221.12,221.01,14.20930955]
[1734287727223,24.027864,221.12,221.01,14.20930955]
[1734287731126,24.027864,221.12,221.02,7.64460955]
[1734287731722,24.027864,221.12,221.04,20.24]
[1734287733249,35.333964,221.12,221.04,20.24]
[1734287733609,0.25098,221.08,221.04,20.24]
[1734287733810,24.027864,221.08,221.04,20.24]
[1734287738553,0.12549,221.04,220.95,8.0554]
[1734287738848,44.027864,221.04,220.95,8.0554]
[1734287739516,23.902374,221.02,220.95,8.0554]
[1734287739711,20.0,220.99,220.95,8.0554]
[1734287739913,0.12549,221.02,220.95,8.0554]
[1734287740216,0.12549,221.01,220.95,8.0554]
[1734287740645,24.027864,220.98,220.88,8.1721]
[1734287741012,0.25098,220.98,220.88,8.1721]
[1734287746018,23.776884,220.99,220.89,7.64460955]
[1734287747353,23.776884,220.99,220.88,15.81670955]
[1734287749850,23.902374,221.0,220.88,15.81670955]
[1734287750230,0.12549,220.99,220.88,15.81670955]
[1734287752233,0.12549,220.99,220.88,8.1721]
[1734287753970,0.12549,220.99,220.88,15.81670955]
[1734287756356,0.12549,220.99,220.9,7.64460955]
[1734287756558,11.3101,221.05,220.92,7.64460955]
[1734287756758,11.3101,221.05,220.94,7.64460955]
[1734287757064,0.12549,221.04,220.93,7.64460955]
[1734287757267,0.12549,221.04,220.9,7.64460955]
[1734287757486,0.12549,221.04,220.93,20.0]
[1734287757786,0.12549,221.04,220.91,20.0]
[1734287758177,0.12549,221.03,220.9,7.64460955]
[1734287758372,24.027864,221.0,220.9,7.64460955]
[1734287758759,24.027864,221.0,220.88,15.81670955]
[1734287759189,0.12549,221.0,220.88,15.81670955]
[1734287761773,0.12549,221.0,220.88,8.1721]
[1734287761973,0.12549,220.96,220.88,8.1721]
[1734287762582,24.027864,220.98,220.88,8.1721]
[1734287764865,0.12549,220.96,220.83,15.67950955]
[1734287765090,24.027864,220.96,220.86,20.0]
[1734287766501,24.027864,220.96,220.83,8.0349]
[1734287769480,24.027864,220.96,220.84,7.64460955]
[1734287769675,24.027864,220.96,220.86,7.64460955]
[1734287771596,24.027864,220.96,220.85,7.64460955]
[1734287771778,24.027864,220.96,220.86,20.0]
[1734287772178,24.027864,220.96,220.85,7.64460955]
[1734287775097,24.027864,220.96,220.86,20.0]
[1734287775414,24.027864,220.96,220.83,8.0349]
[1734287775572,0.12549,220.96,220.84,7.64460955]
[1734287775768,0.12549,220.96,220.83,15.67950955]
[1734287776604,24.027864,220.94,220.83,8.0349]
[1734287778083,24.027864,220.94,220.81,20.0]
[1734287779297,24.027864,220.94,220.81,27.64460955]
[1734287780912,24.027864,220.94,220.81,20.0]
[1734287783593,24.027864,220.94,220.81,27.64460955]
[1734287784210,24.027864,220.94,220.83,7.64460955]
[1734287788115,24.027864,220.94,220.82,7.64460955]
[1734287789684,0.25098,220.92,220.78,7.7885]
[1734287789901,24.027864,220.92,220.78,15.43310955]
[1734287790893,24.027864,220.9,220.78,15.43310955]
[1734287791911,1.5565,220.89,220.77,0.67910491]
[1734287792105,24.027864,220.88,220.77,20.0]
[1734287792611,24.027864,220.88,220.77,27.64460955]
[1734287793637,23.902374,220.88,220.77,27.64460955]
[1734287793813,23.902374,220.88,220.79,7.64460955]
[1734287795122,1.5565,220.89,220.79,7.64460955]
[1734287795329,1.5565,220.89,220.8,7.64460955]
[1734287796424,1.5565,220.89,220.78,27.64460955]
[1734287796615,1.5565,220.89,220.79,20.0]
[1734287797218,1.5565,220.89,220.78,7.64460955]
[1734287799819,1.5565,220.89,220.78,8.32378479]
[1734287801751,1.5565,220.89,220.78,0.67917524]
[1734287802061,1.5565,220.89,220.79,27.64460955]
[1734287805420,1.5565,220.89,220.8,7.64460955]
[1734287806427,1.5565,220.89,220.82,7.64460955]
[1734287806635,23.902374,220.93,220.82,7.64460955]
[1734287808062,23.902374,220.93,220.83,7.64460955]
[1734287808870,23.902374,220.93,220.82,7.64460955]
[1734287809651,23.902374,220.93,220.81,8.32374324]
[1734287810025,23.902374,220.93,220.8,7.64460955]
[1734287810222,23.902374,220.93,220.83,20.0]
[1734287812364,23.902374,220.93,220.84,0.96]
[1734287815725,23.902374,220.93,220.82,7.64460955]
[1734287816157,23.902374,220.93,220.81,7.64460955]
[1734287816533,23.902374,220.93,220.8,20.67910621]
[1734287816733,23.902374,220.93,220.81,7.64460955]
[1734287818639,23.902374,220.93,220.82,0.96]
[1734287823336,1.5992,220.94,220.82,8.60460955]
[1734287823535,1.5992,220.94,220.87,7.64460955]
[1734287823735,0.12549,220.98,220.87,7.64460955]
[1734287824867,24.027864,220.98,220.87,7.64460955]
[1734287826049,26.79429609,220.98,220.86,7.64460955]
[1734287826572,1.5087,220.99,220.88,7.64460955]
[1734287826740,1.5087,220.99,220.89,7.64460955]
[1734287827059,1.5087,220.99,220.89,8.32346319]
[1734287827947,1.5087,220.99,220.91,20.0]
[1734287828580,1.5087,220.99,220.89,0.67885364]
[1734287828944,1.5087,220.99,220.91,20.0]
[1734287830257,23.902374,220.98,220.85,0.67886597]
[1734287830465,23.902374,220.98,220.87,20.0]
[1734287830869,23.902374,220.98,220.88,20.0]
[1734287831055,23.902374,220.98,220.87,20.0]
[1734287831250,23.902374,220.98,220.89,20.0]
[1734287831467,23.902374,220.98,220.87,20.0]
[1734287831468,23.902374,220.98,220.87,27.64460955]
[1734287831679,1.5087,220.99,220.88,7.64460955]
[1734287831981,1.5087,220.99,220.89,7.64460955]
[1734287834990,1.5087,220.99,220.87,20.6789239]
[1734287835157,1.5087,220.99,220.89,7.64460955]
[1734287839091,1.5087,220.99,220.87,20.6789239]
[1734287839092,1.5087,220.99,220.88,7.64460955]
[1734287839307,23.902374,220.98,220.91,20.0]
[1734287839477,23.902374,220.98,220.9,20.0]
[1734287839879,23.902374,220.98,220.87,7.64460955]
[1734287840067,23.902374,220.98,220.89,20.0]
[1734287840276,23.902374,220.98,220.9,0.07]
[1734287841484,23.902374,220.98,220.87,0.07]
[1734287841695,23.902374,220.98,220.87,7.71460955]
[1734287844073,23.902374,220.98,220.88,8.32355746]
[1734287844277,23.902374,220.98,220.9,0.07]
[1734287845396,1.5087,220.99,220.9,0.07]
[1734287845583,1.5087,220.99,220.9,7.71460955]
[1734287847717,1.5087,220.99,220.9,0.07]
[1734287848083,1.5087,220.99,220.9,7.71460955]
[1734287848784,1.5087,220.99,220.9,7.64460955]
[1734287850206,1.5087,220.99,220.91,7.64460955]
[1734287850408,11.3111,221.03,220.92,7.64460955]
[1734287850581,23.776884,221.02,220.92,7.64460955]
[1734287851284,23.776884,221.02,220.92,8.32336582]
[1734287851487,23.776884,221.02,220.93,7.64460955]
[1734287852206,23.776884,221.02,220.92,7.64460955]
[1734287853805,23.776884,221.02,220.93,7.64460955]
[1734287854978,1.5528,221.04,220.93,7.64460955]
[1734287855176,1.5528,221.04,220.94,7.64460955]
[1734287862693,1.5528,221.04,220.92,27.64460955]
[1734287863031,1.5528,221.04,220.92,20.0]
[1734287863214,1.5528,221.04,220.94,20.0]
[1734287863921,23.902374,221.03,220.88,0.67876425]
[1734287864091,23.902374,221.03,220.89,7.64460955]
[1734287864706,23.902374,221.03,220.88,0.67876425]
[1734287864916,23.902374,221.03,220.9,7.64460955]
[1734287865093,23.902374,221.03,220.93,20.0]
[1734287865414,23.902374,221.03,220.9,27.64460955]
[1734287866711,0.12549,221.02,220.91,0.07]
[1734287866921,0.12549,221.02,220.92,20.0]
[1734287867423,0.12549,221.02,220.91,20.07]
[1734287868727,0.12549,221.02,220.91,20.0]
[1734287869431,0.12549,221.02,220.9,20.0]
[1734287869598,0.12549,220.99,220.9,20.0]
[1734287870601,0.12549,220.99,220.89,20.0]
[1734287870926,0.12549,220.99,220.88,20.0]
[1734287871099,0.12549,220.99,220.89,20.0]
[1734287872209,0.12549,220.99,220.9,20.0]
[1734287872416,0.12549,220.99,220.89,7.64460955]
[1734287872817,0.12549,220.99,220.88,20.0]
[1734287873013,0.12549,220.99,220.9,7.64460955]
[1734287873409,23.776884,221.0,220.9,8.32347206]
[1734287873620,11.3099,221.05,220.91,7.64460955]
[1734287874123,11.3099,221.05,220.9,7.64460955]
[1734287874635,11.3099,221.05,220.91,0.07]
[1734287874801,23.902374,221.03,220.91,0.07]
[1734287875831,0.12549,221.02,220.91,0.07]
[1734287876132,23.902374,221.01,220.91,0.07]
[1734287888629,23.902374,221.01,220.9,7.64460955]
[1734287890645,23.902374,221.01,220.88,20.0]
[1734287890646,23.902374,221.01,220.88,27.64460955]
[1734287892444,0.12549,221.0,220.86,20.0]
[1734287892751,0.12549,221.0,220.83,5.33296189]
[1734287892752,23.902374,220.98,220.85,7.64460955]
[1734287894152,23.902374,220.98,220.88,20.0]
[1734287895425,23.902374,220.98,220.81,16.01737623]
[1734287895426,24.027864,220.94,220.79,7.10879386]
[1734287895651,24.027864,220.94,220.78,8.1845]
[1734287895821,27.35884097,220.94,220.78,15.82910955]
[1734287896025,27.35884097,220.94,220.79,7.64460955]
[1734287896758,27.35884097,220.94,220.82,7.64460955]
[1734287896759,27.23335097,220.94,220.82,7.64460955]
[1734287896930,23.902374,220.94,220.84,7.64460955]
[1734287900264,23.902374,220.94,220.82,0.67904372]
[1734287900581,23.902374,220.94,220.83,7.64460955]
[1734287903445,23.902374,220.94,220.82,7.64460955]
[1734287903629,23.902374,220.94,220.81,27.64460955]
[1734287903831,23.902374,220.94,220.83,20.0]
[1734287905840,23.902374,220.94,220.82,7.64460955]
[1734287906734,23.902374,220.94,220.84,0.07]
[1734287908251,23.902374,220.94,220.84,7.71460955]
[1734287908660,0.12549,220.94,220.84,7.71460955]
[1734287908838,1.5522,220.97,220.85,7.64460955]
[1734287909041,1.5522,220.97,220.88,20.0]
[1734287909867,1.5522,220.97,220.86,7.64460955]
[1734287912969,23.902374,220.96,220.84,20.0]
[1734287913148,23.902374,220.96,220.86,20.0]
[1734287914669,23.902374,220.96,220.87,0.07]
[1734287921386,0.12549,220.95,220.87,0.07]
[1734287921759,0.12549,220.95,220.84,0.07]
[1734287927662,23.902374,220.96,220.84,0.07]
[1734287927860,23.902374,220.96,220.84,7.71460955]
[1734287928672,23.902374,220.96,220.83,7.64460955]
[1734287930631,23.902374,220.96,220.84,7.64460955]
[1734287932076,1.5522,220.97,220.85,7.64460955]
[1734287932265,1.5522,220.97,220.86,7.64460955]
[1734287933397,1.5522,220.97,220.87,7.64460955]
[1734287934710,20.0,220.96,220.87,7.64460955]
[1734287934915,20.0,220.96,220.86,7.64460955]
[1734287936611,1.5522,220.97,220.86,7.64460955]
[1734287937183,1.5522,220.97,220.83,20.80442531]
[1734287937391,1.5522,220.97,220.85,7.64460955]
[1734287937926,1.5522,220.97,220.86,7.64460955]
[1734287943827,1.5522,220.97,220.85,7.64460955]
[1734287944336,1.5522,220.97,220.88,20.0]
[1734287946741,1.5522,220.97,220.85,7.64460955]
[1734287946918,1.5522,220.97,220.88,20.0]
[1734287949516,1.5586,221.02,220.9,7.64460955]
[1734287949828,1.5586,221.02,220.91,8.32346107]
[1734287949829,23.776884,221.01,220.91,8.32346107]
[1734287950029,1.5586,221.02,220.91,8.32346107]
[1734287950517,1.5586,221.02,220.92,0.07]
[1734287958251,1.5586,221.02,220.92,0.74874279]
[1734287958453,1.5586,221.02,220.92,8.39335234]
[1734287959431,1.5586,221.02,220.92,0.74874279]
[1734287960257,1.5586,221.02,220.92,0.07]
[1734287962552,1.5586,221.02,220.92,0.74877635]
[1734287962858,1.5586,221.02,220.92,8.3933859]
[1734287963362,1.5586,221.02,220.93,20.0]
[1734287963659,1.5586,221.02,220.92,20.07]
[1734287966326,23.776884,221.01,220.92,0.07]
[1734287966529,0.25098,221.0,220.92,0.07]
[1734287967438,0.12549,220.98,220.84,7.64460955]
[1734287967854,0.12549,220.98,220.87,20.0]
[1734287968242,0.12549,220.98,220.88,20.0]
[1734287969360,0.12549,220.98,220.86,20.0]
[1734287969831,0.12549,220.98,220.87,20.0]
[1734287974350,1.5586,221.02,220.87,20.67896195]
[1734287974533,20.0,221.0,220.87,27.64460955]
[1734287978460,20.0,221.0,220.89,0.96]
[1734287986559,20.0,220.99,220.89,0.96]
[1734287988870,0.12549,221.01,220.89,0.96]
[1734287989188,23.902374,221.01,220.89,0.96]
[1734287989771,23.776884,221.01,220.89,8.60460955]
[1734287990138,23.776884,221.01,220.89,0.96]
[1734287993763,23.776884,221.01,220.9,20.0]
[1734287996863,23.776884,221.01,220.89,20.96]
[1734287999895,1.5586,221.02,220.9,7.64460955]
[1734288000449,1.5586,221.02,220.91,7.64460955]
[1734288000765,1.5586,221.02,220.91,8.32338521]
[1734288000971,1.5586,221.02,220.91,0.67877566]
[1734288001279,5.08126652,221.04,220.93,7.64460955]
[1734288001461,23.902374,221.05,220.93,7.64460955]
[1734288001651,23.776884,221.05,220.93,8.32333223]
[1734288002060,11.3096,221.06,220.93,8.32333223]
[1734288002875,11.3096,221.06,220.93,7.64460955]
[1734288003073,11.3096,221.06,220.95,20.0]
[1734288003572,23.776884,221.05,220.95,20.0]
[1734288003880,23.776884,221.05,220.91,7.77009955]
[1734288004176,23.776884,221.05,220.94,20.0]
[1734288005372,39.87995307,221.09,220.91,7.77009955]
[1734288005373,12.16345307,221.09,221.0,20.0]
[1734288005577,1.5926,221.12,221.0,28.32322077]
[1734288006465,11.3054,221.14,221.02,7.64460955]
[1734288006669,11.3054,221.14,221.04,20.0]
[1734288008185,23.902374,221.13,221.01,7.7441]
[1734288008388,0.12549,221.12,220.99,20.0]
[1734288008565,0.12549,221.12,221.0,20.0]
[1734288009267,0.12549,221.12,221.01,20.0]
[1734288010907,0.12549,221.12,220.99,27.64460955]
[1734288012770,0.12549,221.12,220.99,20.0]
[1734288013002,0.12549,221.12,221.0,20.0]
[1734288015509,0.25098,221.1,221.0,20.0]
[1734288015733,24.027864,221.1,221.0,20.0]
[1734288017008,24.027864,221.1,220.99,20.0]
[1734288021225,24.027864,221.1,221.0,20.0]
[1734288023225,24.027864,221.1,220.99,20.0]
[1734288023445,25.83773306,221.1,220.99,20.0]
[1734288025826,24.027864,221.1,220.99,27.64460955]
[1734288028853,24.027864,221.1,220.99,20.0]
[1734288031353,23.902374,221.1,220.99,27.64460955]
[1734288031556,23.776884,221.14,221.0,7.64460955]
[1734288031866,23.776884,221.14,220.99,20.0]
[1734288031867,23.776884,221.14,221.01,7.64460955]
[1734288032230,20.0,221.11,221.01,7.64460955]
[1734288032465,0.12549,221.14,221.01,7.64460955]
[1734288032660,14.03578029,221.15,221.03,7.64460955]
[1734288034131,23.902374,221.14,221.03,7.64460955]
[1734288039275,23.776884,221.14,221.03,7.64460955]
[1734288039473,23.776884,221.16,221.05,7.64460955]
[1734288042111,23.776884,221.17,221.05,7.64460955]
[1734288042323,20.0,221.14,221.05,7.64460955]
[1734288042822,20.0,221.14,221.04,7.64460955]
[1734288045125,23.776884,221.17,221.04,7.64460955]
[1734288046329,23.776884,221.17,221.05,7.64460955]
[1734288048029,11.303,221.18,221.06,7.64460955]
[1734288048935,24.027864,221.21,221.07,7.64460955]
[1734288049113,24.027864,221.21,221.11,0.10635686]
[1734288049740,26.78500784,221.21,221.11,0.10635686]
[1734288050438,23.902374,221.21,221.11,0.10635686]
[1734288050649,23.776884,221.21,221.11,0.10635686]
[1734288051144,11.3014,221.22,221.11,0.10635686]
[1734288052636,23.776884,221.21,221.11,0.10635686]
[1734288058119,0.067,221.23,221.11,8.42917524]
[1734288058308,0.067,221.23,221.12,7.64460955]
[1734288058538,0.067,221.23,221.13,7.64460955]
[1734288060338,0.067,221.23,221.16,7.64460955]
[1734288062421,0.067,221.23,221.17,20.0]
[1734288062618,0.067,221.23,221.18,20.0]
[1734288064433,0.067,221.23,221.2,0.10635686]
[1734288076739,11.3009,221.22,221.2,0.10635686]
[1734288076940,24.027864,221.21,221.2,0.10635686]
[1734288078865,24.027864,221.21,221.11,20.0]
[1734288083584,24.027864,221.19,221.11,20.0]
[1734288091382,24.027864,221.19,221.08,7.5055]
[1734288091610,11.303,221.18,221.08,7.5055]
[1734288091759,24.027864,221.17,221.08,7.5055]
[1734288091966,24.027864,221.17,221.03,15.61110955]
[1734288093118,24.027864,221.17,221.06,20.0]
[1734288097222,25.87059347,221.17,221.06,20.0]
[1734288109443,25.87059347,221.17,221.15,0.10635686]
[1734288117531,24.027864,221.17,221.15,0.10635686]
[1734288119863,23.776884,221.17,221.15,0.10635686]
[1734288120032,11.303,221.18,221.15,0.10635686]
[1734288121534,23.776884,221.17,221.15,0.10635686]
[1734288129649,24.027864,221.2,221.15,0.10635686]
[1734288131066,24.027864,221.18,221.15,0.10635686]
[1734288132064,24.027864,221.16,221.15,0.10635686]
[1734288132744,23.902374,221.16,221.15,0.10635686]
[1734288132944,23.776884,221.16,221.15,0.10635686]
[1734288133148,23.776884,221.17,221.15,0.10635686]
[1734288135874,0.12549,221.16,221.15,0.10635686]
[1734288136870,0.25098,221.16,221.15,0.10635686]
[1734288144675,24.027864,221.14,221.03,7.9606]
[1734288145765,0.12549,221.12,221.03,7.9606]
[1734288145965,24.027864,221.12,221.03,7.9606]
[1734288150183,23.776884,221.08,221.03,7.9606]
[1734288150692,0.12549,221.09,221.03,7.9606]
[1734288151560,23.776884,221.1,221.03,7.9606]
[1734288151762,20.0,221.12,221.04,7.64460955]
[1734288152874,20.0,221.12,221.03,15.60520955]
[1734288153882,20.0,221.12,221.04,8.60460955]
[1734288155189,23.776884,221.14,221.05,7.64460955]
[1734288155489,23.776884,221.14,221.07,7.682]
[1734288155490,20.0,221.14,221.07,7.682]
[1734288156270,20.0,221.16,221.07,8.642]
[1734288157772,23.902374,221.15,221.07,8.642]
[1734288158470,23.902374,221.15,221.07,7.682]
[1734288160893,0.12549,221.14,221.07,7.682]
[1734288161086,24.027864,221.11,221.02,6.3302]
[1734288162702,24.027864,221.09,221.02,6.3302]
[1734288172188,23.902374,221.09,221.02,6.3302]
[1734288181023,24.027864,221.06,221.02,6.3302]
[1734288181221,24.027864,221.06,221.01,1.5342]
[1734288183399,11.3069,221.11,221.01,1.5342]
[1734288183601,11.3069,221.11,221.02,6.1109]
[1734288184435,22.609,221.16,221.02,6.1109]
[1734288184436,0.12549,221.15,221.02,6.1109]
[1734288184594,20.0,221.13,221.02,6.1109]
[1734288184800,24.027864,221.12,221.02,6.1109]
[1734288185404,35.334264,221.12,221.02,6.1109]
[1734288192845,24.027864,221.08,221.02,6.1109]
[1734288194124,24.027864,221.06,221.02,6.1109]
[1734288198536,23.902374,221.06,221.02,6.1109]
[1734288200912,23.776884,221.06,221.02,6.1109]
[1734288203640,11.3069,221.11,221.02,6.1109]
[1734288205114,23.776884,221.1,221.02,6.1109]
[1734288206334,23.902374,221.15,221.03,1.6523]
[1734288206654,0.12549,221.14,221.03,9.29690955]
[1734288207623,0.12549,221.14,221.04,6.435]
[1734288209440,0.12549,221.14,221.05,0.96]
[1734288210139,0.12549,221.15,221.05,0.96]
[1734288211038,0.25098,221.15,221.04,6.435]
[1734288212338,1.86081182,221.17,221.07,8.0873]
[1734288212339,20.0,221.17,221.07,8.0873]
[1734288212545,0.12549,221.19,221.07,8.0873]
[1734288213628,0.12549,221.18,221.07,8.0873]
[1734288214838,0.12549,221.18,221.08,8.2015]
[1734288218617,11.3024,221.2,221.08,8.2015]
[1734288219226,0.12549,221.19,221.08,8.2015]
[1734288220248,24.027864,221.19,221.08,8.2015]
[1734288225044,11.303,221.18,221.08,8.2015]
[1734288225246,0.12549,221.17,221.08,8.2015]
[1734288230756,0.12549,221.15,221.08,8.2015]
[1734288230929,0.25098,221.15,221.08,8.2015]
[1734288238146,2.07524772,221.15,221.08,8.2015]
[1734288239778,0.25098,221.15,221.08,8.2015]
[1734288241845,24.027864,221.15,221.08,8.2015]
[1734288245273,0.12549,221.13,221.08,8.2015]
[1734288246152,24.027864,221.13,221.08,8.2015]
[1734288247356,0.25098,221.11,221.08,8.2015]
[1734288250882,0.12549,221.11,221.08,8.2015]
[1734288251055,11.3045,221.15,221.08,8.2015]
[1734288251254,10.05438173,221.2,221.08,8.2015]
[1734288251461,11.3029,221.19,221.08,8.2015]
[1734288251677,0.12549,221.18,221.08,8.2015]
[1734288252380,11.3029,221.19,221.08,15.84610955]
[1734288253285,11.3029,221.19,221.08,8.2015]
[1734288254270,0.12549,221.18,221.08,8.2015]
[1734288256763,0.12549,221.18,221.08,16.80610955]
[1734288256967,0.12549,221.18,221.09,7.64460955]
[1734288257781,0.12549,221.18,221.09,8.60460955]
[1734288259682,0.3158611,221.18,221.09,8.60460955]
[1734288262904,0.3158611,221.18,221.09,0.96]
[1734288263508,0.3158611,221.18,221.08,15.84610955]
[1734288264993,0.1903711,221.18,221.09,7.64460955]
[1734288265186,0.1903711,221.18,221.1,7.8323]
[1734288266410,0.1903711,221.18,221.1,8.7923]
[1734288266595,0.1903711,221.18,221.1,7.8323]
[1734288269498,0.1903711,221.18,221.1,8.7923]
[1734288269982,0.1903711,221.18,221.1,16.43690955]
[1734288272811,0.1903711,221.18,221.1,8.7923]
[1734288274901,0.1903711,221.18,221.1,7.8323]
[1734288283005,0.1903711,221.18,221.1,15.47690955]
[1734288289946,0.1903711,221.18,221.1,7.8323]
[1734288291237,20.1903711,221.18,221.1,7.8323]
[1734288293246,0.1903711,221.18,221.1,7.8323]
[1734288296127,0.1903711,221.18,221.1,8.7923]
[1734288299643,0.1903711,221.18,221.1,7.8323]
[1734288305845,0.1903711,221.18,221.12,7.64460955]
[1734288306177,0.1903711,221.18,221.14,15.60560955]
[1734288307039,0.1903711,221.18,221.14,7.961]
[1734288310467,0.1903711,221.18,221.14,15.60560955]
[1734288315744,0.1903711,221.18,221.14,7.961]
[1734288335466,0.1903711,221.18,221.14,15.60560955]
[1734288336473,0.1903711,221.18,221.16,7.64460955]
[1734288336957,0.1903711,221.18,221.15,7.64460955]
[1734288341060,0.1903711,221.18,221.16,7.64460955]
[1734288341261,0.1903711,221.18,221.17,7.64460955]
[1734288342278,0.1903711,221.18,221.14,8.63904887]
[1734288342587,0.1903711,221.18,221.16,7.64460955]
[1734288342773,0.1903711,221.18,221.14,7.961]
[1734288343088,0.1903711,221.18,221.15,7.64460955]
[1734288348773,0.1903711,221.18,221.14,7.961]
[1734288349776,0.1903711,221.18,221.1,7.64460955]
[1734288349976,0.1903711,221.18,221.12,0.96]
[1734288351472,0.1903711,221.18,221.09,7.64460955]
[1734288353193,0.1903711,221.18,221.08,7.64460955]
[1734288354496,0.1903711,221.18,221.09,0.96]
[1734288354681,0.1903711,221.18,221.08,7.64460955]
[1734288357887,0.1903711,221.18,221.09,7.64460955]
[1734288358572,0.1903711,221.18,221.11,7.64460955]
[1734288361271,0.1903711,221.18,221.06,7.7721]
[1734288361482,11.4933711,221.18,221.09,27.64460955]
[1734288361699,11.4933711,221.18,221.09,7.64460955]
[1734288362880,11.4933711,221.18,221.08,7.64460955]
[1734288363283,11.4933711,221.18,221.06,7.7721]
[1734288363486,13.0925711,221.18,221.06,7.7721]
[1734288363889,13.0925711,221.18,221.06,1.5663]
[1734288364097,13.0925711,221.18,221.05,7.64460955]
[1734288364281,23.902374,221.17,221.03,7.64460955]
[1734288364476,11.304,221.16,221.03,7.64460955]
[1734288364692,11.304,221.16,221.01,8.1181]
[1734288364894,11.304,221.16,221.02,7.64460955]
[1734288365408,31.305,221.14,221.01,8.1181]
[1734288365612,23.902374,221.13,220.96,15.22689386]
[1734288365787,20.0,221.1,220.99,7.64460955]
[1734288366585,31.3073,221.1,220.99,7.64460955]
[1734288367603,31.3073,221.1,220.98,7.64460955]
[1734288368804,31.3073,221.1,220.99,7.64460955]
[1734288369512,20.0,221.09,220.96,8.1181]
[1734288369686,20.0,221.09,220.98,7.64460955]
[1734288369887,20.0,221.09,220.97,7.64460955]
[1734288370108,11.3081,221.08,220.96,8.1181]
[1734288370409,11.3081,221.08,220.95,7.64460955]
[1734288370712,20.0,221.04,220.91,8.226]
[1734288371028,20.0,221.04,220.92,7.64460955]
[1734288371896,20.0,221.04,220.91,8.226]
[1734288371897,31.3104,221.04,220.91,8.226]
[1734288372109,20.0,221.03,220.91,15.87060955]
[1734288373011,20.0,221.03,220.92,0.96]
[1734288374086,20.0,221.03,220.92,8.60460955]
[1734288374984,20.0,221.03,220.92,0.96]
[1734288378097,21.5748,221.03,220.92,0.96]
[1734288379106,20.0,220.99,220.92,0.96]
[1734288379291,20.0,220.99,220.86,7.64460955]
[1734288380385,11.3132,220.98,220.86,7.64460955]
[1734288381990,20.0,220.99,220.9,7.64460955]
[1734288382811,11.3114,221.02,220.89,7.64460955]
[1734288387517,11.3114,221.02,220.89,20.0]
[1734288387723,11.3114,221.02,220.88,7.64460955]
[1734288388021,11.3114,221.02,220.87,7.64460955]